[Event "December 19 Early 2023"]
[Site "https://www.chess.com"]
[Date "2023.12.19"]
[Round "8"]
[White "Jakubowski, Krzysztof"]
[Black "Sjugirov, Sanan"]
[Result "0-1"]
[Board "32"]
[TimeControl "180+1"]
[WhiteFideId "1112848"]
[BlackFideId "4189302"]
[WhiteElo "2369"]
[BlackElo "2569"]
[WhiteTeam "POL"]
[BlackTeam "HUN"]
[WhiteClock "0:00:21"]
[BlackClock "0:01:57"]

1. e4 {[%clk 0:03:00]}  c5 {[%clk 0:02:59]} 2. Nf3 {[%clk 0:03:00]}  d6 {[%clk 0:02:59]} 3. d4 {[%clk 0:03:00]}  cxd4 {[%clk 0:03:00]} 4. Nxd4 {[%clk 0:03:00]}  Nf6 {[%clk 0:03:01]} 5. Nc3 {[%clk 0:03:00]}  a6 {[%clk 0:03:02]} 6. Be3 {[%clk 0:02:59]}  e5 {[%clk 0:03:02]} 7. Nb3 {[%clk 0:02:59]}  Be6 {[%clk 0:03:02]} 8. h3 {[%clk 0:02:58]}  Be7 {[%clk 0:03:03]} 9. Qf3 {[%clk 0:02:58]}  O-O {[%clk 0:03:03]} 10. O-O-O {[%clk 0:02:56]}  b5 {[%clk 0:02:57]} 11. g4 {[%clk 0:02:55]}  b4 {[%clk 0:02:57]} 12. Nd5 {[%clk 0:02:55]}  Nxd5 {[%clk 0:02:58]} 13. exd5 {[%clk 0:02:55]}  Bc8 {[%clk 0:02:58]} 14. Bd3 {[%clk 0:02:53]}  a5 {[%clk 0:02:59]} 15. Kb1 {[%clk 0:02:52]}  a4 {[%clk 0:02:57]} 16. Nd2 {[%clk 0:02:52]}  Ba6 {[%clk 0:02:57]} 17. Bxa6 {[%clk 0:02:50]}  Rxa6 {[%clk 0:02:52]} 18. Ne4 {[%clk 0:02:48]}  Nd7 {[%clk 0:02:52]} 19. g5 {[%clk 0:02:48]}  Qc8 {[%clk 0:02:40]} 20. Rc1 {[%clk 0:02:33]}  Qc4 {[%clk 0:02:33]} 21. Rhg1 {[%clk 0:02:27]}  Kh8 {[%clk 0:02:25]} 22. Qf5 {[%clk 0:01:39]}  Nb6 {[%clk 0:02:17]} 23. Nf6 {[%clk 0:01:31]}  g6 {[%clk 0:02:15]} 24. Qf3 {[%clk 0:01:28]}  b3 {[%clk 0:02:09]} 25. Rg4 {[%clk 0:01:20]}  bxc2+ {[%clk 0:02:07]} 26. Ka1 {[%clk 0:00:55]}  Qd3 {[%clk 0:02:07]} 27. Rh4 {[%clk 0:00:51]}  Bxf6 {[%clk 0:02:07]} 28. gxf6 {[%clk 0:00:32]}  a3 {[%clk 0:02:05]} 29. Rb4 {[%clk 0:00:24]}  axb2+ {[%clk 0:02:02]} 30. Rxb2 {[%clk 0:00:24]}  Rxa2+ {[%clk 0:01:57]} 31. Kxa2 {[%clk 0:00:21]}  Ra8# {[%clk 0:01:57]} 0-1

[Event "December 19 Early 2023"]
[Site "https://www.chess.com"]
[Date "2023.12.19"]
[Round "8"]
[White "Zakhartsov, Vladimir"]
[Black "Parpiev, Isaak"]
[Result "1-0"]
[Board "34"]
[TimeControl "180+1"]
[WhiteFideId "4145097"]
[BlackFideId "34281576"]
[WhiteElo "2448"]
[BlackElo "2183"]
[WhiteTeam "RUS"]
[BlackTeam "RUS"]
[WhiteClock "0:00:05"]
[BlackClock "0:00:00"]

1. d4 {[%clk 0:02:54]}  d5 {[%clk 0:02:59]} 2. c4 {[%clk 0:02:54]}  c6 {[%clk 0:03:00]} 3. Nf3 {[%clk 0:02:53]}  Nf6 {[%clk 0:03:00]} 4. Nbd2 {[%clk 0:02:54]}  Bf5 {[%clk 0:02:56]} 5. Nh4 {[%clk 0:02:53]}  Be6 {[%clk 0:02:51]} 6. e3 {[%clk 0:02:53]}  g5 {[%clk 0:02:50]} 7. Nhf3 {[%clk 0:02:52]}  g4 {[%clk 0:02:50]} 8. Ne5 {[%clk 0:02:52]}  h5 {[%clk 0:02:49]} 9. b3 {[%clk 0:02:47]}  Nbd7 {[%clk 0:02:46]} 10. Nxd7 {[%clk 0:02:47]}  Qxd7 {[%clk 0:02:46]} 11. Bb2 {[%clk 0:02:47]}  Bh6 {[%clk 0:02:41]} 12. Bd3 {[%clk 0:02:44]}  h4 {[%clk 0:02:37]} 13. Qe2 {[%clk 0:02:44]}  a6 {[%clk 0:02:32]} 14. O-O-O {[%clk 0:02:32]}  Bf5 {[%clk 0:02:29]} 15. Kb1 {[%clk 0:02:29]}  Bxd3+ {[%clk 0:02:26]} 16. Qxd3 {[%clk 0:02:29]}  O-O-O {[%clk 0:02:26]} 17. Bc3 {[%clk 0:02:11]}  h3 {[%clk 0:02:22]} 18. g3 {[%clk 0:02:11]}  Qe6 {[%clk 0:02:12]} 19. Rc1 {[%clk 0:02:07]}  Kb8 {[%clk 0:02:07]} 20. Ba5 {[%clk 0:02:06]}  Rd7 {[%clk 0:02:04]} 21. c5 {[%clk 0:02:05]}  Ne4 {[%clk 0:02:01]} 22. Nxe4 {[%clk 0:02:04]}  Qxe4 {[%clk 0:01:59]} 23. Qxe4 {[%clk 0:02:04]}  dxe4 {[%clk 0:02:00]} 24. Bc3 {[%clk 0:02:01]}  Rd5 {[%clk 0:01:59]} 25. b4 {[%clk 0:01:58]}  Kc8 {[%clk 0:01:58]} 26. Rc2 {[%clk 0:01:57]}  Kd7 {[%clk 0:01:58]} 27. Kb2 {[%clk 0:01:58]}  Bg7 {[%clk 0:01:58]} 28. Kb3 {[%clk 0:01:57]}  Rh6 {[%clk 0:01:56]} 29. Kc4 {[%clk 0:01:56]}  Rf6 {[%clk 0:01:55]} 30. Re1 {[%clk 0:01:55]}  Rf3 {[%clk 0:01:50]} 31. Ree2 {[%clk 0:01:55]}  e5 {[%clk 0:01:30]} 32. dxe5 {[%clk 0:01:50]}  Ke6 {[%clk 0:01:30]} 33. a4 {[%clk 0:01:43]}  Bxe5 {[%clk 0:01:29]} 34. Bxe5 {[%clk 0:01:34]}  Kxe5 {[%clk 0:01:29]} 35. Red2 {[%clk 0:01:33]}  Rf6 {[%clk 0:01:10]} 36. b5 {[%clk 0:01:30]}  axb5+ {[%clk 0:01:06]} 37. axb5 {[%clk 0:01:31]}  cxb5+ {[%clk 0:01:03]} 38. Kxb5 {[%clk 0:01:32]}  Rd3 {[%clk 0:00:39]} 39. Kc4 {[%clk 0:01:24]}  Rxd2 {[%clk 0:00:31]} 40. Rxd2 {[%clk 0:01:24]}  Ra6 {[%clk 0:00:31]} 41. Rb2 {[%clk 0:01:23]}  Ra7 {[%clk 0:00:28]} 42. Kb5 {[%clk 0:01:21]}  Ra6 {[%clk 0:00:28]} 43. Rd2 {[%clk 0:01:16]}  Ke6 {[%clk 0:00:28]} 44. Rb2 {[%clk 0:01:10]}  f5 {[%clk 0:00:26]} 45. Kc4 {[%clk 0:01:09]}  Ra4+ {[%clk 0:00:24]} 46. Kc3 {[%clk 0:00:55]}  Ra3+ {[%clk 0:00:21]} 47. Kb4 {[%clk 0:00:53]}  Ra1 {[%clk 0:00:18]} 48. Kc4 {[%clk 0:00:52]}  Ra4+ {[%clk 0:00:17]} 49. Kb5 {[%clk 0:00:52]}  Ra6 {[%clk 0:00:17]} 50. Rd2 {[%clk 0:00:51]}  Ra1 {[%clk 0:00:08]} 51. Rd6+ {[%clk 0:00:40]}  Ke7 {[%clk 0:00:07]} 52. Rd5 {[%clk 0:00:07]}  Ke6 {[%clk 0:00:07]} 53. Rd6+ {[%clk 0:00:07]}  Ke7 {[%clk 0:00:07]} 54. Rh6 {[%clk 0:00:05]}  Rb1+ {[%clk 0:00:07]} 55. Ka5 {[%clk 0:00:06]}  Ra1+ {[%clk 0:00:07]} 56. Kb6 {[%clk 0:00:06]}  Rb1+ {[%clk 0:00:07]} 57. Ka7 {[%clk 0:00:05]}  Rc1 {[%clk 0:00:03]} 58. Kb6 {[%clk 0:00:05]}  Rb1+ {[%clk 0:00:04]} 59. Ka5 {[%clk 0:00:03]}  Ra1+ {[%clk 0:00:04]} 60. Kb4 {[%clk 0:00:03]}  Rb1+ {[%clk 0:00:05]} 61. Kc4 {[%clk 0:00:04]}  Rh1 {[%clk 0:00:01]} 62. Rh7+ {[%clk 0:00:03]}  Ke6 {[%clk 0:00:02]} 63. Rxb7 {[%clk 0:00:04]}  Rxh2 {[%clk 0:00:02]} 64. Rb6+ {[%clk 0:00:03]}  Kd7 {[%clk 0:00:01]} 65. Kd5 {[%clk 0:00:03]}  Rxf2 {[%clk 0:00:02]} 66. c6+ {[%clk 0:00:04]}  Kc7 {[%clk 0:00:02]} 67. Rb7+ {[%clk 0:00:04]}  Kc8 {[%clk 0:00:03]} 68. Rh7 {[%clk 0:00:05]}  Rd2+ {[%clk 0:00:03]} 69. Kc5 {[%clk 0:00:04]}  f4 {[%clk 0:00:03]} 70. gxf4 {[%clk 0:00:03]}  h2 {[%clk 0:00:02]} 71. Kb6 {[%clk 0:00:03]}  Rb2+ {[%clk 0:00:02]} 72. Kc5 {[%clk 0:00:03]}  Rc2+ {[%clk 0:00:02]} 73. Kd6 {[%clk 0:00:03]}  Rd2+ {[%clk 0:00:03]} 74. Kc5 {[%clk 0:00:04]}  g3 {[%clk 0:00:03]} 75. Rh8+ {[%clk 0:00:04]}  Rd8 {[%clk 0:00:03]} 76. Rh7 {[%clk 0:00:01]}  Rd1 {[%clk 0:00:02]} 77. Rh8+ {[%clk 0:00:02]}  Rd8 {[%clk 0:00:03]} 78. Rh7 {[%clk 0:00:02]}  g2 {[%clk 0:00:04]} 79. Kb6 {[%clk 0:00:03]}  g1=Q {[%clk 0:00:02]} 80. Rc7+ {[%clk 0:00:03]}  Kb8 {[%clk 0:00:02]} 81. Rb7+ {[%clk 0:00:03]}  Ka8 {[%clk 0:00:03]} 82. Ra7+ {[%clk 0:00:04]}  Kb8 {[%clk 0:00:04]} 83. c7+ {[%clk 0:00:04]}  Kc8 {[%clk 0:00:04]} 84. Ra8+ {[%clk 0:00:05]}  Kd7 {[%clk 0:00:04]} 85. cxd8=Q+ {[%clk 0:00:06]}  Ke6 {[%clk 0:00:04]} 86. Qe8+ {[%clk 0:00:06]}  Kf5 {[%clk 0:00:04]} 87. Qe5+ {[%clk 0:00:06]}  Kg4 {[%clk 0:00:04]} 88. Rg8+ {[%clk 0:00:05]}  Kf3 {[%clk 0:00:04]} 89. Qh5+ {[%clk 0:00:05]}  Kxe3 {[%clk 0:00:03]} 90. Rxg1 {[%clk 0:00:05]}  hxg1=Q {[%clk 0:00:00]} 91. Qc5+ {[%clk 0:00:05]} 1-0

[Event "December 19 Early 2023"]
[Site "https://www.chess.com"]
[Date "2023.12.19"]
[Round "8"]
[White "Livaic, Leon"]
[Black "Shaik Sumer Arsh"]
[Result "0-1"]
[Board "35"]
[TimeControl "180+1"]
[WhiteFideId "14531534"]
[BlackFideId "45020000"]
[WhiteElo "2541"]
[BlackElo "2358"]
[WhiteTeam "CRO"]
[BlackTeam "IND"]
[WhiteClock "0:00:04"]
[BlackClock "0:00:22"]

1. d4 {[%clk 0:03:00]}  Nf6 {[%clk 0:02:58]} 2. c4 {[%clk 0:03:01]}  e6 {[%clk 0:02:59]} 3. Nf3 {[%clk 0:03:01]}  d5 {[%clk 0:02:58]} 4. Nc3 {[%clk 0:03:01]}  Bb4 {[%clk 0:02:57]} 5. Bg5 {[%clk 0:03:01]}  O-O {[%clk 0:02:56]} 6. e3 {[%clk 0:03:01]}  h6 {[%clk 0:02:55]} 7. Bxf6 {[%clk 0:03:02]}  Qxf6 {[%clk 0:02:56]} 8. Rc1 {[%clk 0:03:02]}  dxc4 {[%clk 0:02:55]} 9. Bxc4 {[%clk 0:03:02]}  c5 {[%clk 0:02:56]} 10. O-O {[%clk 0:03:02]}  cxd4 {[%clk 0:02:56]} 11. Ne4 {[%clk 0:03:02]}  Qf5 {[%clk 0:02:55]} 12. Ng3 {[%clk 0:02:56]}  Qa5 {[%clk 0:02:51]} 13. a3 {[%clk 0:02:51]}  Be7 {[%clk 0:02:46]} 14. exd4 {[%clk 0:02:49]}  Nc6 {[%clk 0:02:41]} 15. Qe2 {[%clk 0:02:46]}  Bf6 {[%clk 0:02:39]} 16. Rfd1 {[%clk 0:02:41]}  Rd8 {[%clk 0:02:38]} 17. Qe4 {[%clk 0:02:27]}  Bd7 {[%clk 0:02:08]} 18. d5 {[%clk 0:02:04]}  exd5 {[%clk 0:01:55]} 19. Rxd5 {[%clk 0:02:05]}  Qb6 {[%clk 0:01:39]} 20. Rcd1 {[%clk 0:01:41]}  Re8 {[%clk 0:01:35]} 21. Qf4 {[%clk 0:00:49]}  Be6 {[%clk 0:01:25]} 22. Rb5 {[%clk 0:00:49]}  Rad8 {[%clk 0:01:19]} 23. Rc1 {[%clk 0:00:26]}  Qa6 {[%clk 0:00:36]} 24. Bf1 {[%clk 0:00:25]}  Nd4 {[%clk 0:00:32]} 25. Nxd4 {[%clk 0:00:17]}  Rxd4 {[%clk 0:00:33]} 26. Qf3 {[%clk 0:00:11]}  Qd6 {[%clk 0:00:20]} 27. Qxb7 {[%clk 0:00:08]}  Rd1 {[%clk 0:00:19]} 28. Rxd1 {[%clk 0:00:08]}  Qxd1 {[%clk 0:00:19]} 29. Qc6 {[%clk 0:00:07]}  Bd7 {[%clk 0:00:18]} 30. Qd5 {[%clk 0:00:04]}  Re1 {[%clk 0:00:18]} 31. Qxd1 {[%clk 0:00:04]}  Rxd1 {[%clk 0:00:19]} 32. Rb7 {[%clk 0:00:04]}  a6 {[%clk 0:00:19]} 33. h3 {[%clk 0:00:02]}  Bb5 {[%clk 0:00:19]} 34. Kh2 {[%clk 0:00:03]}  Bxf1 {[%clk 0:00:19]} 35. Nxf1 {[%clk 0:00:03]}  Rxf1 {[%clk 0:00:19]} 36. b3 {[%clk 0:00:04]}  Rxf2 {[%clk 0:00:19]} 37. Kg1 {[%clk 0:00:04]}  Bd4 {[%clk 0:00:19]} 38. Kh1 {[%clk 0:00:05]}  Rf1+ {[%clk 0:00:20]} 39. Kh2 {[%clk 0:00:05]}  Be5+ {[%clk 0:00:20]} 40. g3 {[%clk 0:00:06]}  Rf2+ {[%clk 0:00:21]} 41. Kg1 {[%clk 0:00:06]}  Bxg3 {[%clk 0:00:22]} 42. a4 {[%clk 0:00:07]}  Rb2 {[%clk 0:00:22]} 43. Rb6 {[%clk 0:00:04]}  Bf2+ {[%clk 0:00:22]} 0-1

[Event "December 19 Early 2023"]
[Site "https://www.chess.com"]
[Date "2023.12.19"]
[Round "8"]
[White "Klimkowski, Jan"]
[Black "Estrada Nieto, Julian"]
[Result "1-0"]
[Board "37"]
[TimeControl "180+1"]
[WhiteFideId "21856222"]
[BlackFideId "5101018"]
[WhiteElo "2324"]
[BlackElo "2161"]
[WhiteTeam "POL"]
[BlackTeam "ESP"]
[WhiteClock "0:00:34"]
[BlackClock "0:00:00"]

1. e4 {[%clk 0:03:00]}  e5 {[%clk 0:03:00]} 2. Nf3 {[%clk 0:03:01]}  Nc6 {[%clk 0:03:00]} 3. Bb5 {[%clk 0:03:01]}  a6 {[%clk 0:02:59]} 4. Ba4 {[%clk 0:03:01]}  Nf6 {[%clk 0:02:59]} 5. O-O {[%clk 0:03:01]}  Be7 {[%clk 0:03:00]} 6. Re1 {[%clk 0:03:01]}  b5 {[%clk 0:03:00]} 7. Bb3 {[%clk 0:03:01]}  d6 {[%clk 0:03:01]} 8. c3 {[%clk 0:03:01]}  O-O {[%clk 0:03:01]} 9. h3 {[%clk 0:03:02]}  Bb7 {[%clk 0:03:02]} 10. d4 {[%clk 0:03:02]}  Re8 {[%clk 0:03:02]} 11. Nbd2 {[%clk 0:03:02]}  Bf8 {[%clk 0:03:01]} 12. Bc2 {[%clk 0:03:01]}  h6 {[%clk 0:03:01]} 13. Nf1 {[%clk 0:03:00]}  exd4 {[%clk 0:03:01]} 14. cxd4 {[%clk 0:02:58]}  Nb4 {[%clk 0:03:01]} 15. Ng3 {[%clk 0:02:58]}  Nxc2 {[%clk 0:03:00]} 16. Qxc2 {[%clk 0:02:59]}  Qd7 {[%clk 0:02:47]} 17. b3 {[%clk 0:02:58]}  Nxe4 {[%clk 0:02:15]} 18. Nxe4 {[%clk 0:02:39]}  Qf5 {[%clk 0:02:15]} 19. Nfd2 {[%clk 0:02:39]}  d5 {[%clk 0:02:11]} 20. Qxc7 {[%clk 0:02:39]}  Re7 {[%clk 0:02:07]} 21. Qg3 {[%clk 0:01:55]}  dxe4 {[%clk 0:02:06]} 22. Nf1 {[%clk 0:01:55]}  Rd7 {[%clk 0:01:40]} 23. Ne3 {[%clk 0:01:42]}  Qg6 {[%clk 0:01:28]} 24. Qxg6 {[%clk 0:01:42]}  fxg6 {[%clk 0:01:28]} 25. Bb2 {[%clk 0:01:43]}  Rc8 {[%clk 0:01:17]} 26. Rec1 {[%clk 0:01:42]}  Rdc7 {[%clk 0:01:17]} 27. Rxc7 {[%clk 0:01:41]}  Rxc7 {[%clk 0:01:17]} 28. Rd1 {[%clk 0:01:39]}  Kf7 {[%clk 0:01:09]} 29. Kf1 {[%clk 0:01:38]}  a5 {[%clk 0:00:59]} 30. d5 {[%clk 0:01:32]}  Bd6 {[%clk 0:00:58]} 31. Bd4 {[%clk 0:01:30]}  a4 {[%clk 0:00:56]} 32. Bb6 {[%clk 0:01:21]}  Rc3 {[%clk 0:00:50]} 33. Bd4 {[%clk 0:01:07]}  Rc8 {[%clk 0:00:47]} 34. Ke2 {[%clk 0:01:06]}  Ba6 {[%clk 0:00:44]} 35. g3 {[%clk 0:01:04]}  b4+ {[%clk 0:00:33]} 36. Kd2 {[%clk 0:01:04]}  a3 {[%clk 0:00:30]} 37. Nc2 {[%clk 0:00:54]}  Bd3 {[%clk 0:00:25]} 38. Ne3 {[%clk 0:00:53]}  h5 {[%clk 0:00:16]} 39. h4 {[%clk 0:00:53]}  Bf8 {[%clk 0:00:10]} 40. Be5 {[%clk 0:00:47]}  Ke7 {[%clk 0:00:07]} 41. f3 {[%clk 0:00:40]}  Kd7 {[%clk 0:00:06]} 42. fxe4 {[%clk 0:00:40]}  Bxe4 {[%clk 0:00:06]} 43. Rf1 {[%clk 0:00:41]}  Ke8 {[%clk 0:00:04]} 44. Rf4 {[%clk 0:00:39]}  Bb1 {[%clk 0:00:03]} 45. Nc4 {[%clk 0:00:34]}  Bxa2 {[%clk 0:00:00]} 46. Kc2 {[%clk 0:00:34]} 1-0

[Event "December 19 Early 2023"]
[Site "https://www.chess.com"]
[Date "2023.12.19"]
[Round "8"]
[White "Puzzlebot_1294"]
[Black "Shimanov, Aleksandr"]
[Result "0-1"]
[Board "41"]
[TimeControl "180+1"]
[BlackFideId "4198603"]
[WhiteElo "2659"]
[BlackElo "2611"]
[BlackTeam "RUS"]
[WhiteClock "0:00:18"]
[BlackClock "0:00:14"]

1. d4 {[%clk 0:03:00]}  Nf6 {[%clk 0:02:59]} 2. Bf4 {[%clk 0:02:58]}  c5 {[%clk 0:02:55]} 3. e3 {[%clk 0:02:57]}  Qb6 {[%clk 0:02:54]} 4. Na3 {[%clk 0:02:53]}  Nd5 {[%clk 0:02:09]} 5. Nc4 {[%clk 0:02:53]}  Qd8 {[%clk 0:02:05]} 6. Bg3 {[%clk 0:02:52]}  cxd4 {[%clk 0:02:04]} 7. exd4 {[%clk 0:02:50]}  d6 {[%clk 0:02:02]} 8. c3 {[%clk 0:02:50]}  Nc6 {[%clk 0:02:03]} 9. Nf3 {[%clk 0:02:50]}  g6 {[%clk 0:02:03]} 10. Bd3 {[%clk 0:02:50]}  Bg7 {[%clk 0:02:03]} 11. O-O {[%clk 0:02:50]}  O-O {[%clk 0:02:04]} 12. Re1 {[%clk 0:02:49]}  Rb8 {[%clk 0:02:00]} 13. Ne3 {[%clk 0:02:47]}  Nf6 {[%clk 0:01:49]} 14. Qe2 {[%clk 0:02:44]}  Nh5 {[%clk 0:01:37]} 15. Rad1 {[%clk 0:02:38]}  Nxg3 {[%clk 0:01:37]} 16. hxg3 {[%clk 0:02:36]}  Bd7 {[%clk 0:01:37]} 17. Nd5 {[%clk 0:02:33]}  e6 {[%clk 0:01:37]} 18. Ne3 {[%clk 0:02:34]}  Ne7 {[%clk 0:01:34]} 19. Bc4 {[%clk 0:02:31]}  b5 {[%clk 0:01:33]} 20. Bb3 {[%clk 0:02:30]}  a5 {[%clk 0:01:33]} 21. d5 {[%clk 0:02:27]}  e5 {[%clk 0:01:32]} 22. Bc2 {[%clk 0:02:26]}  h6 {[%clk 0:01:24]} 23. c4 {[%clk 0:02:23]}  f5 {[%clk 0:01:16]} 24. b3 {[%clk 0:02:16]}  Qb6 {[%clk 0:01:08]} 25. Nf1 {[%clk 0:02:07]}  bxc4 {[%clk 0:01:07]} 26. bxc4 {[%clk 0:02:08]}  e4 {[%clk 0:01:03]} 27. N3h2 {[%clk 0:01:59]}  h5 {[%clk 0:01:00]} 28. Rb1 {[%clk 0:01:56]}  Qc5 {[%clk 0:01:00]} 29. Ne3 {[%clk 0:01:55]}  Bd4 {[%clk 0:00:50]} 30. Nhf1 {[%clk 0:01:54]}  Kg7 {[%clk 0:00:44]} 31. Rxb8 {[%clk 0:01:51]}  Rxb8 {[%clk 0:00:43]} 32. Rb1 {[%clk 0:01:52]}  Rxb1 {[%clk 0:00:43]} 33. Bxb1 {[%clk 0:01:53]}  Qb4 {[%clk 0:00:40]} 34. Qd1 {[%clk 0:01:47]}  Bc5 {[%clk 0:00:32]} 35. Bc2 {[%clk 0:01:41]}  Qc3 {[%clk 0:00:28]} 36. Ba4 {[%clk 0:01:35]}  Bc8 {[%clk 0:00:27]} 37. Bb5 {[%clk 0:01:28]}  h4 {[%clk 0:00:19]} 38. gxh4 {[%clk 0:01:10]}  f4 {[%clk 0:00:19]} 39. Ng4 {[%clk 0:01:11]}  e3 {[%clk 0:00:19]} 40. Ngh2 {[%clk 0:00:58]}  exf2+ {[%clk 0:00:19]} 41. Kh1 {[%clk 0:00:58]}  Nf5 {[%clk 0:00:18]} 42. h5 {[%clk 0:00:30]}  Qe1 {[%clk 0:00:18]} 43. g4 {[%clk 0:00:21]}  Ng3+ {[%clk 0:00:14]} 44. Kg2 {[%clk 0:00:18]}  Qxd1 {[%clk 0:00:14]} 0-1

[Event "December 19 Early 2023"]
[Site "https://www.chess.com"]
[Date "2023.12.19"]
[Round "8"]
[White "Kavyev, Ruslan"]
[Black "Haug, Havard"]
[Result "0-1"]
[Board "45"]
[TimeControl "180+1"]
[WhiteFideId "34110981"]
[BlackFideId "1547887"]
[WhiteElo "2336"]
[BlackElo "2343"]
[WhiteTeam "RUS"]
[BlackTeam "NOR"]
[WhiteClock "0:00:00"]
[BlackClock "0:02:17"]

1. d4 {[%clk 0:00:08]}  b6 {[%clk 0:03:00]} 2. c4 {[%clk 0:00:08]}  Bb7 {[%clk 0:03:00]} 3. Nf3 {[%clk 0:00:08]}  e6 {[%clk 0:03:00]} 4. g3 {[%clk 0:00:09]}  Bxf3 {[%clk 0:03:00]} 5. exf3 {[%clk 0:00:10]}  Nf6 {[%clk 0:02:59]} 6. Bg2 {[%clk 0:00:10]}  d5 {[%clk 0:03:00]} 7. O-O {[%clk 0:00:11]}  Be7 {[%clk 0:03:00]} 8. f4 {[%clk 0:00:11]}  O-O {[%clk 0:03:00]} 9. Nc3 {[%clk 0:00:12]}  c6 {[%clk 0:02:57]} 10. b3 {[%clk 0:00:13]}  Qd7 {[%clk 0:02:55]} 11. Be3 {[%clk 0:00:13]}  Rd8 {[%clk 0:02:55]} 12. Rc1 {[%clk 0:00:13]}  Na6 {[%clk 0:02:48]} 13. Qe2 {[%clk 0:00:12]}  Nc7 {[%clk 0:02:47]} 14. Rfd1 {[%clk 0:00:13]}  Rac8 {[%clk 0:02:46]} 15. h3 {[%clk 0:00:13]}  h5 {[%clk 0:02:42]} 16. Bf3 {[%clk 0:00:12]}  g6 {[%clk 0:02:41]} 17. Kg2 {[%clk 0:00:12]}  Bb4 {[%clk 0:02:38]} 18. Qb2 {[%clk 0:00:11]}  Bxc3 {[%clk 0:02:38]} 19. Qxc3 {[%clk 0:00:10]}  Nce8 {[%clk 0:02:39]} 20. Qc2 {[%clk 0:00:09]}  Nd6 {[%clk 0:02:36]} 21. Qe2 {[%clk 0:00:09]}  Nf5 {[%clk 0:02:34]} 22. Qb2 {[%clk 0:00:06]}  Kg7 {[%clk 0:02:34]} 23. a3 {[%clk 0:00:05]}  Qe7 {[%clk 0:02:30]} 24. b4 {[%clk 0:00:05]}  dxc4 {[%clk 0:02:27]} 25. Rxc4 {[%clk 0:00:04]}  Nd5 {[%clk 0:02:28]} 26. Qe2 {[%clk 0:00:02]}  Qf6 {[%clk 0:02:27]} 27. Rdc1 {[%clk 0:00:00]}  h4 {[%clk 0:02:17]} 0-1

[Event "December 19 Early 2023"]
[Site "https://www.chess.com"]
[Date "2023.12.19"]
[Round "8"]
[White "Vlassov, Nikolai"]
[Black "Brodsky, David"]
[Result "1-0"]
[Board "46"]
[TimeControl "180+1"]
[WhiteFideId "4103360"]
[BlackFideId "2073250"]
[WhiteElo "2351"]
[BlackElo "2814"]
[WhiteTeam "FID"]
[BlackTeam "USA"]
[WhiteClock "0:00:27"]
[BlackClock "0:00:05"]

1. e4 {[%clk 0:03:00]}  c5 {[%clk 0:02:59]} 2. c3 {[%clk 0:03:00]}  Nf6 {[%clk 0:02:58]} 3. e5 {[%clk 0:03:00]}  Nd5 {[%clk 0:02:58]} 4. d4 {[%clk 0:03:00]}  cxd4 {[%clk 0:02:59]} 5. cxd4 {[%clk 0:03:00]}  d6 {[%clk 0:02:59]} 6. Bc4 {[%clk 0:03:00]}  Nb6 {[%clk 0:02:56]} 7. Bb3 {[%clk 0:03:01]}  Nc6 {[%clk 0:02:53]} 8. e6 {[%clk 0:03:00]}  fxe6 {[%clk 0:02:46]} 9. Nf3 {[%clk 0:03:00]}  g6 {[%clk 0:02:44]} 10. h4 {[%clk 0:03:00]}  Bg7 {[%clk 0:02:36]} 11. h5 {[%clk 0:03:01]}  e5 {[%clk 0:02:22]} 12. dxe5 {[%clk 0:02:59]}  Nxe5 {[%clk 0:02:20]} 13. Nxe5 {[%clk 0:02:59]}  Bxe5 {[%clk 0:02:20]} 14. O-O {[%clk 0:02:59]}  Bf5 {[%clk 0:02:07]} 15. Nc3 {[%clk 0:02:53]}  Qd7 {[%clk 0:02:04]} 16. Be3 {[%clk 0:02:52]}  Be6 {[%clk 0:01:57]} 17. Bxb6 {[%clk 0:02:30]}  Bxb3 {[%clk 0:01:56]} 18. Qxb3 {[%clk 0:02:29]}  axb6 {[%clk 0:01:57]} 19. Nd5 {[%clk 0:02:23]}  Ra5 {[%clk 0:01:48]} 20. Rad1 {[%clk 0:02:16]}  Qf5 {[%clk 0:01:36]} 21. Rfe1 {[%clk 0:02:06]}  e6 {[%clk 0:01:07]} 22. Nc7+ {[%clk 0:01:51]}  Kd7 {[%clk 0:00:37]} 23. Qxb6 {[%clk 0:01:48]}  Rf8 {[%clk 0:00:34]} 24. Nb5 {[%clk 0:01:06]}  Rxb5 {[%clk 0:00:34]} 25. Qxb5+ {[%clk 0:01:04]}  Kc7 {[%clk 0:00:34]} 26. Qc4+ {[%clk 0:01:00]}  Kb8 {[%clk 0:00:34]} 27. Re2 {[%clk 0:00:57]}  Qxh5 {[%clk 0:00:30]} 28. g3 {[%clk 0:00:57]}  d5 {[%clk 0:00:18]} 29. Qb4 {[%clk 0:00:36]}  Qxe2 {[%clk 0:00:15]} 30. Qxf8+ {[%clk 0:00:35]}  Ka7 {[%clk 0:00:15]} 31. Qc5+ {[%clk 0:00:34]}  Kb8 {[%clk 0:00:15]} 32. Rc1 {[%clk 0:00:33]}  Qxb2 {[%clk 0:00:11]} 33. Re1 {[%clk 0:00:30]}  Bd4 {[%clk 0:00:10]} 34. Qf8+ {[%clk 0:00:29]}  Ka7 {[%clk 0:00:10]} 35. Rxe6 {[%clk 0:00:30]}  Qxa2 {[%clk 0:00:09]} 36. Re8 {[%clk 0:00:30]}  Qb1+ {[%clk 0:00:08]} 37. Kg2 {[%clk 0:00:31]}  Qc2 {[%clk 0:00:04]} 38. Ra8+ {[%clk 0:00:30]}  Kb6 {[%clk 0:00:04]} 39. Qb4+ {[%clk 0:00:27]}  Kc7 {[%clk 0:00:05]} 1-0

[Event "December 19 Early 2023"]
[Site "https://www.chess.com"]
[Date "2023.12.19"]
[Round "8"]
[White "Yeremyan, Alen"]
[Black "Ambartsumova, Karina"]
[Result "1-0"]
[Board "47"]
[TimeControl "180+1"]
[WhiteFideId "13308998"]
[BlackFideId "4166299"]
[WhiteElo "2160"]
[BlackElo "2240"]
[WhiteTeam "ARM"]
[BlackTeam "RUS"]
[WhiteClock "0:02:09"]
[BlackClock "0:00:00"]

1. e4 {[%clk 0:03:00]}  e5 {[%clk 0:03:00]} 2. Nf3 {[%clk 0:02:59]}  Nc6 {[%clk 0:03:00]} 3. d4 {[%clk 0:02:58]}  exd4 {[%clk 0:03:00]} 4. Nxd4 {[%clk 0:02:59]}  Bc5 {[%clk 0:02:59]} 5. Nb3 {[%clk 0:03:00]}  Bb6 {[%clk 0:02:58]} 6. Nc3 {[%clk 0:03:01]}  Nf6 {[%clk 0:02:58]} 7. Bf4 {[%clk 0:02:59]}  O-O {[%clk 0:02:50]} 8. Qd2 {[%clk 0:03:00]}  Re8 {[%clk 0:02:48]} 9. O-O-O {[%clk 0:03:00]}  d6 {[%clk 0:02:34]} 10. f3 {[%clk 0:02:58]}  a5 {[%clk 0:02:26]} 11. Bb5 {[%clk 0:02:51]}  Bd7 {[%clk 0:01:52]} 12. Rhe1 {[%clk 0:02:48]}  Ne5 {[%clk 0:01:47]} 13. Bxd7 {[%clk 0:02:45]}  Nfxd7 {[%clk 0:01:35]} 14. Nd5 {[%clk 0:02:44]}  a4 {[%clk 0:01:32]} 15. Nd4 {[%clk 0:02:44]}  c6 {[%clk 0:01:19]} 16. Ne3 {[%clk 0:02:41]}  Ba5 {[%clk 0:01:11]} 17. c3 {[%clk 0:02:41]}  a3 {[%clk 0:01:11]} 18. b4 {[%clk 0:02:41]}  Bc7 {[%clk 0:01:10]} 19. Ndf5 {[%clk 0:02:41]}  Qf6 {[%clk 0:00:59]} 20. h4 {[%clk 0:02:38]}  Nb6 {[%clk 0:00:50]} 21. Bg5 {[%clk 0:02:34]}  Qe6 {[%clk 0:00:51]} 22. Nd4 {[%clk 0:02:35]}  Qd7 {[%clk 0:00:42]} 23. Nef5 {[%clk 0:02:35]}  Nbc4 {[%clk 0:00:40]} 24. Qf4 {[%clk 0:02:35]}  c5 {[%clk 0:00:31]} 25. Nh6+ {[%clk 0:02:21]}  Kh8 {[%clk 0:00:23]} 26. Ndf5 {[%clk 0:02:16]}  cxb4 {[%clk 0:00:16]} 27. Nxg7 {[%clk 0:02:11]}  b3 {[%clk 0:00:00]} 28. Bf6 {[%clk 0:02:09]} 1-0